[Event "*** Titled Tuesday Blitz"]
[Site "Chess.com"]
[Date "2018.12.04"]
[Round "10"]
[White "KRASAVCHIK2002"]
[Black "NateSolon"]
[Result "0-1"]
[WhiteElo "2375"]
[BlackElo "2486"]
[TimeControl "180+2"]
[EndTime "15:24:05 PST"]
[Termination "NateSolon won on time"]

1. e4 {[%clk 0:03:01.9]} 1... c5 {[%clk 0:03:00.8]} 2. Nf3 {[%clk 0:03:02.5]}
2... e6 {[%clk 0:03:01.8]} 3. d4 {[%clk 0:03:03.4]} 3... cxd4 {[%clk 0:03:03.7]}
4. Nxd4 {[%clk 0:03:04.6]} 4... Nc6 {[%clk 0:03:05.4]} 5. Nc3 {[%clk 0:03:05.2]}
5... Qc7 {[%clk 0:03:06.2]} 6. g4 {[%clk 0:03:06.3]} 6... a6 {[%clk 0:03:05.5]}
7. h4 {[%clk 0:03:06.6]} 7... b5 {[%clk 0:02:53.2]} 8. Bg2 {[%clk 0:03:01.4]}
8... Bb7 {[%clk 0:02:54.2]} 9. a3 {[%clk 0:02:54.7]} 9... Nge7 {[%clk
0:02:54.7]} 10. Nxc6 {[%clk 0:02:21.8]} 10... Nxc6 {[%clk 0:02:54.1]} 11. O-O
{[%clk 0:02:22.3]} 11... Be7 {[%clk 0:02:48.6]} 12. g5 {[%clk 0:02:17.4]} 12...
h6 {[%clk 0:02:44]} 13. g6 {[%clk 0:02:12.5]} 13... fxg6 {[%clk 0:02:43.1]} 14.
h5 {[%clk 0:02:11.2]} 14... Ne5 {[%clk 0:02:32]} 15. f4 {[%clk 0:02:06.6]} 15...
Nc4 {[%clk 0:02:24]} 16. hxg6 {[%clk 0:01:56]} 16... O-O {[%clk 0:02:20.7]} 17.
b3 {[%clk 0:01:26.3]} 17... Bc5+ {[%clk 0:02:09]} 18. Kh1 {[%clk 0:01:17.3]}
18... Ne3 {[%clk 0:02:08.8]} 19. Bxe3 {[%clk 0:01:15]} 19... Bxe3 {[%clk
0:02:10.7]} 20. Qd3 {[%clk 0:01:14.7]} 20... Bxf4 {[%clk 0:02:07.7]} 21. Rad1
{[%clk 0:01:15.5]} 21... Bc6 {[%clk 0:01:56]} 22. Ne2 {[%clk 0:01:14.9]} 22...
Be5 {[%clk 0:01:52.4]} 23. c4 {[%clk 0:00:41.4]} 23... Rae8 {[%clk 0:01:42.6]}
24. c5 {[%clk 0:00:36.1]} 24... Qd8 {[%clk 0:01:43.3]} 25. Qh3 {[%clk
0:00:18.1]} 25... Qg5 {[%clk 0:01:43.2]} 26. Rxf8+ {[%clk 0:00:10.3]} 26... Rxf8
{[%clk 0:01:43]} 27. Nd4 {[%clk 0:00:11.2]} 27... Bxd4 {[%clk 0:01:36.8]} 28.
Rxd4 {[%clk 0:00:12.6]} 28... Qxc5 {[%clk 0:01:31.4]} 29. Rd1 {[%clk 0:00:11.5]}
29... Qc2 {[%clk 0:01:26.8]} 30. Re1 {[%clk 0:00:10.1]} 30... Rf4 {[%clk
0:01:11.4]} 31. Qg3 {[%clk 0:00:09.1]} 31... Qf2 {[%clk 0:01:11.8]} 32. Qxf2
{[%clk 0:00:04.7]} 32... Rxf2 {[%clk 0:01:13.7]} 33. Kg1 {[%clk 0:00:05.8]}
33... Rf6 {[%clk 0:01:12.6]} 34. Bh3 {[%clk 0:00:02.9]} 34... Rxg6+ {[%clk
0:01:13.5]} 35. Kf2 {[%clk 0:00:04.8]} 35... Kf7 {[%clk 0:01:09.6]} 36. Kf3
{[%clk 0:00:03.7]} 36... Ke7 {[%clk 0:01:00.4]} 37. Kf4 {[%clk 0:00:04.4]} 37...
Rf6+ {[%clk 0:00:59.9]} 38. Ke3 {[%clk 0:00:04.8]} 38... e5 {[%clk 0:00:58.8]}
39. Rg1 {[%clk 0:00:05.4]} 39... g5 {[%clk 0:00:58.8]} 40. Bf5 {[%clk
0:00:06.2]} 40... d5 {[%clk 0:00:56.8]} 41. Rc1 {[%clk 0:00:06.7]} 41... Kd6
{[%clk 0:00:51.8]} 42. Rd1 {[%clk 0:00:06.9]} 42... d4+ {[%clk 0:00:50.3]} 43.
Kd3 {[%clk 0:00:07.2]} 43... Bd7 {[%clk 0:00:50]} 44. Bxd7 {[%clk 0:00:04.4]}
44... Kxd7 {[%clk 0:00:51.9]} 45. Rh1 {[%clk 0:00:05.3]} 45... g4 {[%clk
0:00:49.3]} 46. Rh4 {[%clk 0:00:05.3]} 46... Rg6 {[%clk 0:00:50.4]} 47. Ke2
{[%clk 0:00:05.8]} 47... g3 {[%clk 0:00:51.6]} 48. Kf1 {[%clk 0:00:07.3]} 48...
g2+ {[%clk 0:00:51.3]} 49. Kg1 {[%clk 0:00:08.7]} 49... Kd6 {[%clk 0:00:51.6]}
50. Rh3 {[%clk 0:00:07.6]} 50... Kc5 {[%clk 0:00:50.8]} 51. Rd3 {[%clk
0:00:05.8]} 51... a5 {[%clk 0:00:50.2]} 52. Rf3 {[%clk 0:00:06.3]} 52... a4
{[%clk 0:00:50.5]} 53. bxa4 {[%clk 0:00:07.3]} 53... bxa4 {[%clk 0:00:52.4]} 54.
Rh3 {[%clk 0:00:07.6]} 54... Kc4 {[%clk 0:00:52.8]} 55. Rf3 {[%clk 0:00:08.5]}
55... d3 {[%clk 0:00:53.8]} 56. Rf2 {[%clk 0:00:09.9]} 56... Kc3 {[%clk
0:00:54.6]} 57. Rf3 {[%clk 0:00:11.4]} 57... Kc2 {[%clk 0:00:55.1]} 58. Rf2+
{[%clk 0:00:12.2]} 58... d2 {[%clk 0:00:56.2]} 59. Re2 {[%clk 0:00:13.7]} 59...
Kc1 {[%clk 0:00:57.2]} 60. Re1+ {[%clk 0:00:06.3]} 60... dxe1=Q+ {[%clk
0:00:56.7]} 0-1

[Event "*** Titled Tuesday Blitz"]
[Site "Chess.com"]
[Date "2018.12.04"]
[Round "10"]
[White "VincentBlom"]
[Black "vpantev"]
[Result "1-0"]
[WhiteElo "2536"]
[BlackElo "2611"]
[TimeControl "180+2"]
[EndTime "15:24:07 PST"]
[Termination "VincentBlom won by resignation"]

1. d4 {[%clk 0:03:01.9]} 1... Nf6 {[%clk 0:03:00.2]} 2. Bg5 {[%clk 0:03:02.4]}
2... d5 {[%clk 0:03:00.9]} 3. Bxf6 {[%clk 0:03:03.3]} 3... exf6 {[%clk
0:03:01.7]} 4. Nf3 {[%clk 0:03:05.2]} 4... Bd6 {[%clk 0:03:02.6]} 5. e3 {[%clk
0:03:06.2]} 5... O-O {[%clk 0:03:03.5]} 6. g3 {[%clk 0:03:07.6]} 6... c6 {[%clk
0:03:01.4]} 7. Bg2 {[%clk 0:03:08.9]} 7... f5 {[%clk 0:03:01.7]} 8. O-O {[%clk
0:03:10]} 8... Nd7 {[%clk 0:03:02.9]} 9. Nbd2 {[%clk 0:03:09.8]} 9... Nf6 {[%clk
0:03:03.5]} 10. c4 {[%clk 0:03:08.1]} 10... Ne4 {[%clk 0:03:01.6]} 11. cxd5
{[%clk 0:03:03.6]} 11... cxd5 {[%clk 0:03:02.4]} 12. Ne1 {[%clk 0:03:02]} 12...
Be6 {[%clk 0:02:57.9]} 13. Nd3 {[%clk 0:03:03.1]} 13... Qb6 {[%clk 0:02:56.9]}
14. Nf3 {[%clk 0:02:56.2]} 14... Rac8 {[%clk 0:02:53.3]} 15. Rc1 {[%clk
0:02:55.8]} 15... Qa6 {[%clk 0:02:53.9]} 16. a3 {[%clk 0:02:54.4]} 16... Rxc1
{[%clk 0:02:52.8]} 17. Nxc1 {[%clk 0:02:56.3]} 17... Rc8 {[%clk 0:02:51]} 18.
Re1 {[%clk 0:02:57.3]} 18... h6 {[%clk 0:02:43.5]} 19. Bf1 {[%clk 0:02:57.6]}
19... Qb6 {[%clk 0:02:43.2]} 20. Nd3 {[%clk 0:02:52.3]} 20... g6 {[%clk
0:02:35]} 21. Nfe5 {[%clk 0:02:41.9]} 21... Kg7 {[%clk 0:02:33.4]} 22. Nf3
{[%clk 0:02:29.3]} 22... Qc7 {[%clk 0:02:33.3]} 23. Qb1 {[%clk 0:02:22.5]} 23...
Qc2 {[%clk 0:02:32.9]} 24. Rc1 {[%clk 0:02:21.4]} 24... Qxb1 {[%clk 0:02:33.5]}
25. Rxb1 {[%clk 0:02:21.8]} 25... Ng5 {[%clk 0:02:27.3]} 26. Be2 {[%clk
0:02:05.1]} 26... Ne4 {[%clk 0:02:21.2]} 27. Rc1 {[%clk 0:02:03.1]} 27... Rxc1+
{[%clk 0:02:21.2]} 28. Nxc1 {[%clk 0:02:05]} 28... a5 {[%clk 0:02:21.7]} 29. Bb5
{[%clk 0:02:00.8]} 29... Kf8 {[%clk 0:02:21.3]} 30. Nd3 {[%clk 0:02:01.8]} 30...
Ke7 {[%clk 0:02:18.3]} 31. Kf1 {[%clk 0:02:02.9]} 31... Kd8 {[%clk 0:02:13]} 32.
Ke2 {[%clk 0:02:03.5]} 32... Kc7 {[%clk 0:02:13.9]} 33. Nde5 {[%clk 0:02:01.8]}
33... Kd8 {[%clk 0:02:08.1]} 34. Ne1 {[%clk 0:01:56.1]} 34... Ke7 {[%clk
0:02:06.7]} 35. f3 {[%clk 0:01:56.7]} 35... Nf6 {[%clk 0:02:07.8]} 36. N1d3
{[%clk 0:01:54.9]} 36... b6 {[%clk 0:02:07.2]} 37. Bc6 {[%clk 0:01:54.8]} 37...
Kd8 {[%clk 0:01:56.7]} 38. Kd2 {[%clk 0:01:54.9]} 38... Ke7 {[%clk 0:01:57]} 39.
Kc3 {[%clk 0:01:55.5]} 39... Bc8 {[%clk 0:01:55]} 40. Nf4 {[%clk 0:01:53.6]}
40... Be6 {[%clk 0:01:52.3]} 41. Kb3 {[%clk 0:01:54.2]} 41... g5 {[%clk
0:01:53.3]} 42. Nfd3 {[%clk 0:01:53.9]} 42... Bc8 {[%clk 0:01:54]} 43. Bb5
{[%clk 0:01:49]} 43... Bb7 {[%clk 0:01:49.4]} 44. Kc3 {[%clk 0:01:47.7]} 44...
Ke6 {[%clk 0:01:46.1]} 45. Kd2 {[%clk 0:01:46]} 45... Ke7 {[%clk 0:01:47.2]} 46.
Ke2 {[%clk 0:01:44.2]} 46... Nh7 {[%clk 0:01:46.3]} 47. Kd2 {[%clk 0:01:44.7]}
47... Nf8 {[%clk 0:01:46.8]} 48. Kc3 {[%clk 0:01:42.3]} 48... Ne6 {[%clk
0:01:46.9]} 49. f4 {[%clk 0:01:39.8]} 49... Nc7 {[%clk 0:01:39.8]} 50. Nc6+
{[%clk 0:01:30]} 50... Kf6 {[%clk 0:01:36.2]} 51. Ba4 {[%clk 0:01:09.3]} 51...
b5 {[%clk 0:01:31.4]} 52. Nxa5 {[%clk 0:01:09.6]} 52... Bc8 {[%clk 0:01:28]} 53.
Bc2 {[%clk 0:01:04.9]} 53... Kg6 {[%clk 0:01:28.6]} 54. Nc6 {[%clk 0:01:05.4]}
54... Kh5 {[%clk 0:01:27.5]} 55. Bd1+ {[%clk 0:01:06.1]} 55... Kg6 {[%clk
0:01:28.7]} 56. Bf3 {[%clk 0:01:05.6]} 56... h5 {[%clk 0:01:28.4]} 57. Nde5+
{[%clk 0:01:03.6]} 57... Kf6 {[%clk 0:01:27.6]} 58. Nb4 {[%clk 0:01:04.5]} 58...
Bb7 {[%clk 0:01:27.4]} 59. Nbd3 {[%clk 0:01:04.8]} 59... h4 {[%clk 0:01:28.1]}
60. gxh4 {[%clk 0:01:02.6]} 60... g4 {[%clk 0:01:28.5]} 61. Bg2 {[%clk
0:01:02.9]} 61... Kg7 {[%clk 0:01:29.1]} 62. Nb4 {[%clk 0:01:00.6]} 62... Be7
{[%clk 0:01:29.1]} 63. h5 {[%clk 0:01:00.6]} 63... Bd6 {[%clk 0:01:27.7]} 64.
Kd2 {[%clk 0:00:57.6]} 64... Bf8 {[%clk 0:01:27.7]} 65. Ke2 {[%clk 0:00:58.7]}
65... f6 {[%clk 0:01:28.8]} 66. Nd7 {[%clk 0:00:57]} 66... Be7 {[%clk
0:01:29.4]} 67. Nc5 {[%clk 0:00:58.4]} 67... Ba8 {[%clk 0:01:29.6]} 68. Nba6
{[%clk 0:00:56.1]} 68... Nxa6 {[%clk 0:01:26.8]} 69. Nxa6 {[%clk 0:00:58]} 69...
Kh6 {[%clk 0:01:27.9]} 70. Nc7 {[%clk 0:00:56]} 70... Bc6 {[%clk 0:01:27.7]} 71.
Bxd5 {[%clk 0:00:56.5]} 71... Bd7 {[%clk 0:01:29.1]} 72. Be6 {[%clk 0:00:54.3]}
72... Bd6 {[%clk 0:01:30.3]} 73. Bxd7 {[%clk 0:00:55]} 73... Bxc7 {[%clk
0:01:31.7]} 74. Bxb5 {[%clk 0:00:51.9]} 74... Kxh5 {[%clk 0:01:32]} 75. Bd7
{[%clk 0:00:52.3]} 75... Kg6 {[%clk 0:01:33.2]} 76. b4 {[%clk 0:00:53.6]} 76...
Bd6 {[%clk 0:01:34.2]} 77. Be6 {[%clk 0:00:53.5]} 77... Be7 {[%clk 0:01:34.9]}
78. Kd3 {[%clk 0:00:52.3]} 1-0

[Event "*** Titled Tuesday Blitz"]
[Site "Chess.com"]
[Date "2018.12.04"]
[Round "10"]
[White "WorldChampionBulletChess"]
[Black "sergeikim"]
[Result "0-1"]
[WhiteElo "2175"]
[BlackElo "2451"]
[TimeControl "180+2"]
[EndTime "15:24:11 PST"]
[Termination "sergeikim won by resignation"]

1. d4 {[%clk 0:03:01.9]} 1... Nf6 {[%clk 0:03:00.3]} 2. c4 {[%clk 0:03:02.6]}
2... g6 {[%clk 0:03:01.3]} 3. Nc3 {[%clk 0:03:03.2]} 3... Bg7 {[%clk 0:03:02.4]}
4. f3 {[%clk 0:03:04.2]} 4... O-O {[%clk 0:03:02.5]} 5. e4 {[%clk 0:03:04.6]}
5... d6 {[%clk 0:03:03.4]} 6. Bd3 {[%clk 0:03:03.9]} 6... Nc6 {[%clk 0:03:01]}
7. Nge2 {[%clk 0:03:04.3]} 7... e5 {[%clk 0:02:54.4]} 8. d5 {[%clk 0:02:55.8]}
8... Ne7 {[%clk 0:02:54.7]} 9. O-O {[%clk 0:02:57.1]} 9... c6 {[%clk 0:02:50.9]}
10. Be3 {[%clk 0:02:57.4]} 10... a6 {[%clk 0:02:49.2]} 11. b4 {[%clk 0:02:57.9]}
11... cxd5 {[%clk 0:02:46]} 12. Nxd5 {[%clk 0:02:57.4]} 12... Nfxd5 {[%clk
0:02:40.5]} 13. cxd5 {[%clk 0:02:56.5]} 13... f5 {[%clk 0:02:41.1]} 14. Rc1
{[%clk 0:02:36.2]} 14... Bd7 {[%clk 0:02:37.8]} 15. Nc3 {[%clk 0:02:19.4]} 15...
Rf7 {[%clk 0:02:19.8]} 16. Qd2 {[%clk 0:02:20]} 16... Qf8 {[%clk 0:02:08.9]} 17.
b5 {[%clk 0:02:14]} 17... h6 {[%clk 0:01:47.2]} 18. Na4 {[%clk 0:01:59.4]} 18...
Nc8 {[%clk 0:01:41.8]} 19. bxa6 {[%clk 0:01:54.6]} 19... bxa6 {[%clk 0:01:41.2]}
20. Nb6 {[%clk 0:01:52.3]} 20... Nxb6 {[%clk 0:01:40.3]} 21. Bxb6 {[%clk
0:01:54.2]} 21... Bf6 {[%clk 0:01:32.1]} 22. Rc7 {[%clk 0:01:48.6]} 22... Bd8
{[%clk 0:01:26.9]} 23. Rb7 {[%clk 0:01:41.8]} 23... Bc8 {[%clk 0:01:26.3]} 24.
Rxf7 {[%clk 0:01:39.3]} 24... Bxb6+ {[%clk 0:01:25.2]} 25. Kh1 {[%clk 0:01:34]}
25... Kxf7 {[%clk 0:01:15.9]} 26. Rb1 {[%clk 0:01:31.1]} 26... Bc5 {[%clk
0:01:10.8]} 27. Qa5 {[%clk 0:01:29.2]} 27... Qe7 {[%clk 0:01:00.7]} 28. Qd2
{[%clk 0:01:14.4]} 28... f4 {[%clk 0:00:56.7]} 29. Rb3 {[%clk 0:00:54.9]} 29...
a5 {[%clk 0:00:49.8]} 30. Qb2 {[%clk 0:00:55]} 30... a4 {[%clk 0:00:44.7]} 31.
Rb8 {[%clk 0:00:51.2]} 31... Rxb8 {[%clk 0:00:42.6]} 32. Qxb8 {[%clk 0:00:53.1]}
32... Qb7 {[%clk 0:00:42]} 33. Qxb7+ {[%clk 0:00:46.5]} 33... Bxb7 {[%clk
0:00:42.7]} 34. Bb5 {[%clk 0:00:48.4]} 34... a3 {[%clk 0:00:43.2]} 35. g3 {[%clk
0:00:48.6]} 35... g5 {[%clk 0:00:43.2]} 36. Kg2 {[%clk 0:00:49.5]} 36... Bc8
{[%clk 0:00:43.2]} 37. g4 {[%clk 0:00:49.7]} 37... Ke7 {[%clk 0:00:40]} 38. h3
{[%clk 0:00:48.4]} 38... Bd7 {[%clk 0:00:38.3]} 39. Bc4 {[%clk 0:00:48.3]} 39...
Kd8 {[%clk 0:00:38.9]} 40. h4 {[%clk 0:00:43.1]} 40... gxh4 {[%clk 0:00:36.7]}
41. Kh3 {[%clk 0:00:43.8]} 41... Bf2 {[%clk 0:00:37.2]} 42. Bb3 {[%clk
0:00:43.1]} 42... Bg3 {[%clk 0:00:36.9]} 43. Bc4 {[%clk 0:00:43.5]} 43... h5
{[%clk 0:00:37.2]} 44. Be2 {[%clk 0:00:40.4]} 44... Ke7 {[%clk 0:00:37.6]} 45.
Kg2 {[%clk 0:00:40.8]} 45... hxg4 {[%clk 0:00:38.5]} 46. fxg4 {[%clk 0:00:42.7]}
46... Kf6 {[%clk 0:00:39.3]} 47. Bd1 {[%clk 0:00:25.2]} 47... Kg5 {[%clk
0:00:39.3]} 48. Kh3 {[%clk 0:00:23.8]} 48... Bb5 {[%clk 0:00:33.3]} 49. Bf3
{[%clk 0:00:20.6]} 49... Bf1+ {[%clk 0:00:28.5]} 50. Bg2 {[%clk 0:00:21.6]}
50... Bxg2+ {[%clk 0:00:29.8]} 51. Kxg2 {[%clk 0:00:23.5]} 51... Kxg4 {[%clk
0:00:31.1]} 52. Kh1 {[%clk 0:00:24.6]} 52... f3 {[%clk 0:00:31.8]} 53. Kg1
{[%clk 0:00:26.1]} 53... Kf4 {[%clk 0:00:33]} 54. Kh1 {[%clk 0:00:27.6]} 54...
Kxe4 {[%clk 0:00:33.4]} 55. Kg1 {[%clk 0:00:29.2]} 55... Kxd5 {[%clk 0:00:34.2]}
56. Kh1 {[%clk 0:00:30.7]} 56... e4 {[%clk 0:00:35.3]} 57. Kg1 {[%clk
0:00:32.2]} 57... e3 {[%clk 0:00:35.7]} 58. Kh1 {[%clk 0:00:34.1]} 58... e2
{[%clk 0:00:35.3]} 0-1

[Event "*** Titled Tuesday Blitz"]
[Site "Chess.com"]
[Date "2018.12.04"]
[Round "10"]
[White "GMWSO"]
[Black "penguingm1"]
[Result "1-0"]
[WhiteElo "2977"]
[BlackElo "2786"]
[TimeControl "180+2"]
[EndTime "15:24:26 PST"]
[Termination "GMWSO won by resignation"]

1. d4 {[%clk 0:03:01.9]} 1... d5 {[%clk 0:03:00.5]} 2. c4 {[%clk 0:03:01.3]}
2... e6 {[%clk 0:03:01.8]} 3. Nc3 {[%clk 0:03:03.2]} 3... Be7 {[%clk 0:03:03.1]}
4. cxd5 {[%clk 0:03:04.4]} 4... exd5 {[%clk 0:03:05]} 5. Bf4 {[%clk 0:03:06.1]}
5... c6 {[%clk 0:03:06.7]} 6. e3 {[%clk 0:03:07.4]} 6... Bf5 {[%clk 0:03:08.3]}
7. g4 {[%clk 0:03:08.5]} 7... Be6 {[%clk 0:03:09.7]} 8. h3 {[%clk 0:03:07.5]}
8... Nd7 {[%clk 0:03:10.3]} 9. Qb3 {[%clk 0:03:03.2]} 9... Nb6 {[%clk
0:02:16.7]} 10. Nf3 {[%clk 0:02:56.9]} 10... g5 {[%clk 0:02:07.9]} 11. Be5
{[%clk 0:02:50.6]} 11... f6 {[%clk 0:02:01.5]} 12. Bg3 {[%clk 0:02:50.9]} 12...
h5 {[%clk 0:02:01]} 13. gxh5 {[%clk 0:02:50.6]} 13... Rxh5 {[%clk 0:02:02.9]}
14. Bd3 {[%clk 0:02:36.5]} 14... Rxh3 {[%clk 0:01:52.7]} 15. Rxh3 {[%clk
0:02:26]} 15... Bxh3 {[%clk 0:01:54.6]} 16. e4 {[%clk 0:02:23.7]} 16... Be6
{[%clk 0:01:34.6]} 17. O-O-O {[%clk 0:02:07]} 17... Qd7 {[%clk 0:01:29.5]} 18.
Qc2 {[%clk 0:02:02.5]} 18... Bg4 {[%clk 0:01:04.2]} 19. Be2 {[%clk 0:01:56.5]}
19... dxe4 {[%clk 0:01:01]} 20. Nxe4 {[%clk 0:01:57.2]} 20... O-O-O {[%clk
0:01:01.3]} 21. d5 {[%clk 0:01:12]} 21... Nxd5 {[%clk 0:00:45.5]} 22. Qa4 {[%clk
0:01:12.9]} 22... a6 {[%clk 0:00:34.4]} 23. Ne5 {[%clk 0:01:07.9]} 23... Bxe2
{[%clk 0:00:22.3]} 24. Nxd7 {[%clk 0:01:08.8]} 24... Bxd1 {[%clk 0:00:23.6]} 25.
Qxd1 {[%clk 0:01:06.6]} 25... Rxd7 {[%clk 0:00:24.7]} 26. Qh5 {[%clk 0:01:01.1]}
26... f5 {[%clk 0:00:20.7]} 27. Nxg5 {[%clk 0:00:53.6]} 27... Bxg5+ {[%clk
0:00:16.6]} 28. Qxg5 {[%clk 0:00:55.5]} 28... Nge7 {[%clk 0:00:18]} 29. a3
{[%clk 0:00:51.3]} 29... Rd8 {[%clk 0:00:10.7]} 30. Qh6 {[%clk 0:00:45.9]} 30...
Rd7 {[%clk 0:00:04.9]} 31. Be5 {[%clk 0:00:45.5]} 31... Rd8 {[%clk 0:00:03.4]}
32. Qe6+ {[%clk 0:00:45.3]} 32... Rd7 {[%clk 0:00:04.7]} 33. f4 {[%clk
0:00:42.7]} 33... Kd8 {[%clk 0:00:05.3]} 34. Kb1 {[%clk 0:00:40.6]} 34... Kc8
{[%clk 0:00:06.7]} 35. Ka2 {[%clk 0:00:41.7]} 35... Kd8 {[%clk 0:00:07.3]} 36.
Qf7 {[%clk 0:00:41.2]} 36... Kc8 {[%clk 0:00:07.7]} 37. Qh5 {[%clk 0:00:29.8]}
37... Rd8 {[%clk 0:00:07.7]} 38. Qg5 {[%clk 0:00:28.4]} 38... Rd7 {[%clk
0:00:08.5]} 39. Bd4 {[%clk 0:00:28.6]} 39... Kc7 {[%clk 0:00:07.2]} 40. Qh4
{[%clk 0:00:25.2]} 40... Rd8 {[%clk 0:00:06.1]} 41. Bc5 {[%clk 0:00:24.3]} 41...
Kd7 {[%clk 0:00:05.6]} 42. Qf2 {[%clk 0:00:23.2]} 42... Kc7 {[%clk 0:00:05.8]}
43. Bd4 {[%clk 0:00:24]} 43... Kd7 {[%clk 0:00:05.5]} 44. Be5 {[%clk 0:00:25.1]}
44... Ra8 {[%clk 0:00:05.8]} 45. Qc5 {[%clk 0:00:25.7]} 45... Rd8 {[%clk
0:00:05.9]} 46. Qa7 {[%clk 0:00:26.6]} 46... Ke6 {[%clk 0:00:02.9]} 47. Qxb7
{[%clk 0:00:27.6]} 47... a5 {[%clk 0:00:04]} 48. Qa6 {[%clk 0:00:27.8]} 48...
Rc8 {[%clk 0:00:03.8]} 49. Qxa5 {[%clk 0:00:28.8]} 49... Ng6 {[%clk 0:00:05.5]}
50. Qe1 {[%clk 0:00:29.8]} 50... Kf7 {[%clk 0:00:06.3]} 51. Bd6 {[%clk
0:00:28.1]} 51... Re8 {[%clk 0:00:07.3]} 52. Qc1 {[%clk 0:00:28.3]} 52... Re6
{[%clk 0:00:06.7]} 53. Qxc6 {[%clk 0:00:28.7]} 53... Nge7 {[%clk 0:00:08.2]} 54.
Qc5 {[%clk 0:00:27.9]} 54... Ne3 {[%clk 0:00:05.3]} 55. Bxe7 {[%clk 0:00:27.3]}
55... Rxe7 {[%clk 0:00:07.2]} 56. a4 {[%clk 0:00:28.2]} 56... Re4 {[%clk
0:00:08.5]} 57. a5 {[%clk 0:00:28.9]} 57... Kg6 {[%clk 0:00:08.7]} 58. a6 {[%clk
0:00:28.8]} 1-0

[Event "*** Titled Tuesday Blitz"]
[Site "Chess.com"]
[Date "2018.12.04"]
[Round "10"]
[White "Paparama_1917"]
[Black "martinique24"]
[Result "1/2-1/2"]
[WhiteElo "2576"]
[BlackElo "2427"]
[TimeControl "180+2"]
[EndTime "15:24:35 PST"]
[Termination "Game drawn by agreement"]

1. e4 {[%clk 0:03:01.9]} 1... e5 {[%clk 0:02:56.9]} 2. Nf3 {[%clk 0:03:02.4]}
2... Nf6 {[%clk 0:02:54]} 3. Nxe5 {[%clk 0:02:58.6]} 3... d6 {[%clk 0:02:55.4]}
4. Nd3 {[%clk 0:02:59.8]} 4... Nxe4 {[%clk 0:02:56.3]} 5. Qe2 {[%clk 0:02:59.8]}
5... Qe7 {[%clk 0:02:55.4]} 6. Nf4 {[%clk 0:03:01.1]} 6... c6 {[%clk 0:02:50.9]}
7. d3 {[%clk 0:03:01.6]} 7... Nf6 {[%clk 0:02:51.1]} 8. d4 {[%clk 0:03:02.9]}
8... Qxe2+ {[%clk 0:02:49.6]} 9. Bxe2 {[%clk 0:03:04.8]} 9... d5 {[%clk
0:02:50.8]} 10. Nd2 {[%clk 0:02:55.5]} 10... Bd6 {[%clk 0:02:49.4]} 11. Nf3
{[%clk 0:02:55.7]} 11... O-O {[%clk 0:02:47.4]} 12. Ne5 {[%clk 0:02:47.6]} 12...
Nbd7 {[%clk 0:02:45.6]} 13. Nfd3 {[%clk 0:02:47.3]} 13... Re8 {[%clk 0:02:31.5]}
14. Bf4 {[%clk 0:02:43.5]} 14... Nf8 {[%clk 0:02:25.3]} 15. O-O-O {[%clk
0:02:28.9]} 15... Bf5 {[%clk 0:02:19]} 16. Rde1 {[%clk 0:02:22.7]} 16... Rad8
{[%clk 0:02:18.2]} 17. f3 {[%clk 0:02:23.5]} 17... Ng6 {[%clk 0:02:05.4]} 18.
Nxg6 {[%clk 0:02:16]} 18... hxg6 {[%clk 0:02:05.2]} 19. Bxd6 {[%clk 0:02:17.1]}
19... Rxd6 {[%clk 0:02:07.1]} 20. h4 {[%clk 0:02:10.8]} 20... Nh5 {[%clk
0:01:39.3]} 21. Kd2 {[%clk 0:00:58.8]} 21... Ng3 {[%clk 0:01:35.3]} 22. Rhg1
{[%clk 0:00:59.9]} 22... Nxe2 {[%clk 0:01:20.4]} 23. Rxe2 {[%clk 0:01:00.4]}
23... Rxe2+ {[%clk 0:01:21.9]} 24. Kxe2 {[%clk 0:01:01.7]} 24... Re6+ {[%clk
0:01:23.6]} 25. Kd2 {[%clk 0:01:01.4]} 25... Bxd3 {[%clk 0:01:25.2]} 26. Kxd3
{[%clk 0:01:02.6]} 26... f5 {[%clk 0:01:23.4]} 27. g3 {[%clk 0:00:47.5]} 27...
Kf7 {[%clk 0:01:13.8]} 28. Rg2 {[%clk 0:00:21.4]} 28... b6 {[%clk 0:00:53.4]}
29. Re2 {[%clk 0:00:19.7]} 29... c5 {[%clk 0:00:54.2]} 30. Re5 {[%clk
0:00:20.1]} 30... Rxe5 {[%clk 0:00:31.7]} 31. dxe5 {[%clk 0:00:22]} 31... Ke6
{[%clk 0:00:33]} 32. f4 {[%clk 0:00:23.5]} 32... b5 {[%clk 0:00:31.9]} 33. c3
{[%clk 0:00:19.2]} 33... a5 {[%clk 0:00:32.3]} 34. Ke3 {[%clk 0:00:18.7]} 34...
Kd7 {[%clk 0:00:32]} 35. Kf3 {[%clk 0:00:19.9]} 35... Ke6 {[%clk 0:00:33.5]} 36.
g4 {[%clk 0:00:21.1]} 36... d4 {[%clk 0:00:28.9]} 37. cxd4 {[%clk 0:00:21.2]}
37... cxd4 {[%clk 0:00:29.8]} 38. gxf5+ {[%clk 0:00:19.6]} 38... gxf5 {[%clk
0:00:19.7]} 39. Ke2 {[%clk 0:00:20.7]} 39... g6 {[%clk 0:00:13.6]} 40. Kd3
{[%clk 0:00:21.5]} 40... Kd5 {[%clk 0:00:14.9]} 41. Kd2 {[%clk 0:00:22.2]} 41...
Kc5 {[%clk 0:00:15.3]} 42. Kc2 {[%clk 0:00:23.3]} 42... Kc6 {[%clk 0:00:14.5]}
43. b3 {[%clk 0:00:22.6]} 43... Kc5 {[%clk 0:00:10.9]} 44. a3 {[%clk 0:00:23.6]}
44... Kc6 {[%clk 0:00:11.1]} 45. Kd3 {[%clk 0:00:24.2]} 45... Kd5 {[%clk
0:00:12.3]} 46. Kd2 {[%clk 0:00:13.4]} 46... Kc5 {[%clk 0:00:10.2]} 47. Ke2
{[%clk 0:00:14.4]} 47... Kc6 {[%clk 0:00:10.3]} 48. Kd3 {[%clk 0:00:15.1]} 48...
Kd5 {[%clk 0:00:11.6]} 49. a4 {[%clk 0:00:13.4]} 49... b4 {[%clk 0:00:10.1]} 50.
Kc2 {[%clk 0:00:14.2]} 50... Kc6 {[%clk 0:00:10.4]} 51. Kd2 {[%clk 0:00:15.4]}
51... Kc5 {[%clk 0:00:10.9]} 52. Kd3 {[%clk 0:00:16.5]} 52... Kd5 {[%clk
0:00:12.2]} 53. Ke2 {[%clk 0:00:17.7]} 53... Kc5 {[%clk 0:00:11.7]} 54. Kf3
{[%clk 0:00:18.5]} 54... Kc6 {[%clk 0:00:12.7]} 55. Kg3 {[%clk 0:00:18.9]} 55...
Kd5 {[%clk 0:00:11.4]} 56. Kf2 {[%clk 0:00:20.8]} 56... Kc6 {[%clk 0:00:12.5]}
57. Ke2 {[%clk 0:00:22.4]} 57... Kc5 {[%clk 0:00:13.8]} 58. Kd2 {[%clk
0:00:24.1]} 58... Kc6 {[%clk 0:00:15.1]} 59. Kd3 {[%clk 0:00:25.8]} 59... Kd5
{[%clk 0:00:16.3]} 60. e6 {[%clk 0:00:26.9]} 60... Kxe6 {[%clk 0:00:17.4]} 61.
Kxd4 {[%clk 0:00:28.8]} 61... Kd6 {[%clk 0:00:19]} 62. Kc4 {[%clk 0:00:30.2]}
62... Kc6 {[%clk 0:00:20.4]} 63. Kd4 {[%clk 0:00:31.8]} 63... Kd6 {[%clk
0:00:21.9]} 64. Kc4 {[%clk 0:00:31.4]} 1/2-1/2